bitfinex/quotes_SOLUSD_20250508
["timestamp","ask_amount","ask_price","bid_price","bid_amount"]
[1746718257817,6.24131113,160.23,160.04,60.0]
[1746718258127,37.21658608,160.24,160.07,21.86543387]
[1746718258313,37.21658608,160.21,160.07,6.24726682]
[1746718258513,37.21658608,160.18,160.06,1.5852]
[1746718258727,0.14216157,160.15,160.05,12.81374342]
[1746718259041,266.08,160.17,160.05,12.81374342]
[1746718259042,31.8,160.14,160.05,12.81374342]
[1746718259407,37.21658608,160.06,159.92,6.1406]
[1746718259604,37.21658608,160.04,159.92,6.1406]
[1746718259936,37.21658608,159.99,159.85,1.6053]
[1746718260143,6.24921884,160.02,159.86,6.25547353]
[1746718260609,43.46580492,160.02,159.86,6.25547353]
[1746718260806,31.8,160.03,159.88,68.79181043]
[1746718261006,37.21658608,160.01,159.86,21.89415737]
[1746718261227,18.64964886,160.02,159.87,1.0]
[1746718261228,37.21658608,159.98,159.87,1.0]
[1746718261533,31.8,160.03,159.86,6.25547353]
[1746718261732,37.21658608,160.0,159.86,6.25547353]
[1746718261926,31.94216157,160.03,159.86,21.89415737]
[1746718262122,0.14216157,160.02,159.86,21.89415737]
[1746718262433,6.2491541,160.03,159.86,71.89415737]
[1746718262636,234.28,160.04,159.89,18.64964886]
[1746718262851,240.52846662,160.04,159.87,18.64964886]
[1746718263034,277.7450527,160.04,159.87,18.64964886]
[1746718263203,277.7450527,160.04,159.86,21.89415737]
[1746718263204,37.21658608,159.98,159.86,21.89415737]
[1746718263408,37.21658608,159.99,159.86,21.89415737]
[1746718263634,37.21658608,159.98,159.86,21.89415737]
[1746718263840,37.21658608,159.95,159.86,6.25547353]
[1746718264039,31.8,159.94,159.86,6.25547353]
[1746718264245,31.8,159.94,159.86,21.89415737]
[1746718265052,38.0524068,159.94,159.82,6.4724]
[1746718265222,37.21658608,159.89,159.82,6.4724]
[1746718265635,37.21658608,159.89,159.82,12.72943055]
[1746718265940,37.21658608,159.91,159.82,12.72943055]
[1746718266124,37.21658608,159.88,159.82,6.4724]
[1746718266324,37.21658608,159.89,159.82,6.4724]
[1746718266509,6.25390869,159.9,159.82,6.4724]
[1746718266707,37.21658608,159.89,159.82,6.4724]
[1746718266912,6.25390869,159.9,159.82,6.4724]
[1746718267229,37.21658608,159.84,159.75,1.5765]
[1746718267418,31.8,159.84,159.75,1.5765]
[1746718267936,37.21658608,159.82,159.74,6.3891]
[1746718268241,37.21658608,159.79,159.74,6.3891]
[1746718268537,37.21658608,159.75,159.65,6.26334746]
[1746718268831,37.21658608,159.69,159.59,6.26605677]
[1746718269135,0.14216157,159.72,159.58,7.81179961]
[1746718269340,37.21658608,159.65,159.59,26.0]
[1746718269640,37.21658608,159.6,159.47,7.9485]
[1746718269820,234.3,159.64,159.48,21.94632555]
[1746718270135,37.21658608,159.62,159.55,26.0]
[1746718270338,6.26448662,159.63,159.52,6.26880641]
[1746718270515,37.21658608,159.62,159.53,1.14622417]
[1746718270714,37.21658608,159.61,159.55,26.0]
[1746718271035,37.21658608,159.61,159.56,1.14600866]
[1746718271354,37.21658608,159.58,159.56,1.14600866]
[1746718271559,37.21658608,159.57,159.56,1.14600866]
[1746718271737,6.26448662,159.63,159.56,1.14600866]
[1746718271931,18.79181043,159.62,159.56,1.14600866]
[1746718272146,43.48289773,159.59,159.56,1.14600866]
[1746718272341,37.21658608,159.58,159.56,1.14600866]
[1746718272541,0.14216157,159.62,159.56,1.14600866]
[1746718272842,37.21658608,159.58,159.56,1.14600866]
[1746718273230,37.35874765,159.57,159.48,6.27037313]
[1746718273429,37.35874765,159.57,159.47,7.9485]
[1746718273430,31.0,159.56,159.49,1.14651164]
[1746718273640,37.21658608,159.53,159.49,1.14651164]
[1746718273841,31.0,159.56,159.49,1.14651164]
[1746718274426,37.26724176,159.56,159.51,26.0]
[1746718274659,37.26724176,159.56,159.51,1.14636789]
[1746718274660,74.48382784,159.56,159.51,1.14636789]
[1746718274852,37.26724176,159.56,159.51,1.14636789]
[1746718275039,31.0,159.56,159.51,1.14636789]
[1746718275231,31.0,159.56,159.52,26.0]
[1746718275754,37.26750752,159.56,159.42,21.95440808]
[1746718275959,37.21658608,159.55,159.42,21.95440808]
[1746718276139,6.26841346,159.53,159.42,21.95440808]
[1746718276342,43.48499954,159.53,159.42,21.95440808]
[1746718276543,37.21658608,159.43,159.25,37.6766091]
[1746718276742,37.21658608,159.39,159.25,6.27943485]
[1746718276943,37.21658608,159.38,159.25,9.55187711]
[1746718277146,0.14216157,159.4,159.28,26.0]
[1746718277342,0.14216157,159.41,159.25,9.55187711]
[1746718277658,6.27374924,159.4,159.25,25.25046423]
[1746718277838,6.27374924,159.4,159.29,26.0]
[1746718278192,6.27374924,159.4,159.26,18.64964886]
[1746718278640,6.27374924,159.4,159.29,26.0]
[1746718278845,6.27374924,159.4,159.3,6.2774639]
[1746718279245,6.27315369,159.41,159.3,6.2774639]
[1746718280370,6.27315369,159.41,159.33,26.0]
[1746718280858,68.23658608,159.42,159.37,26.0]
[1746718280859,31.02,159.42,159.37,26.0]
[1746718281064,234.58,159.43,159.37,26.0]
[1746718281466,240.85249333,159.43,159.37,26.0]
[1746718281654,240.85249333,159.43,159.26,0.14216157]
[1746718281655,37.35874765,159.42,159.26,0.14216157]
[1746718281855,18.79181043,159.42,159.27,15.69602116]
[1746718282165,293.74994248,159.43,159.28,18.64964886]
[1746718282363,234.58,159.43,159.31,26.0]
[1746718282587,271.79658608,159.43,159.31,26.0]
[1746718282870,6.27313217,159.41,159.27,15.69602116]
[1746718283236,240.85259467,159.43,159.28,18.64964886]
[1746718283464,240.85259467,159.43,159.31,26.0]
[1746718283864,234.58,159.43,159.35,26.0]
[1746718284870,234.58,159.43,159.39,26.0]
[1746718286476,234.58,159.43,159.37,26.0]
[1746718286894,234.58,159.43,159.38,6.27431296]
[1746718287095,234.58,159.43,159.37,32.27469332]
[1746718287386,234.58,159.43,159.37,47.96145996]
[1746718287554,234.58,159.43,159.37,32.27469332]
[1746718287759,234.58,159.43,159.38,3.0]
[1746718287947,234.58,159.43,159.31,15.69255184]
[1746718287948,37.21658608,159.42,159.31,15.69255184]
[1746718288158,18.64964886,159.42,159.31,15.69255184]
[1746718288380,278.21115458,159.43,159.31,15.69255184]
[1746718288582,234.58,159.43,159.29,68.64964886]
[1746718288877,234.58,159.43,159.34,6.27588803]
[1746718289257,234.58,159.43,159.34,21.96560812]
[1746718289570,234.58,159.43,159.37,26.0]
[1746718290880,234.58,159.43,159.38,6.27431296]
[1746718291169,234.58,159.43,159.38,21.96009536]
[1746718291375,234.58,159.43,159.38,6.27431296]
[1746718292075,234.58,159.43,159.41,26.0]
[1746718292385,31.04,159.46,159.41,26.0]
[1746718292589,37.31123535,159.46,159.39,26.0]
[1746718292767,37.35874765,159.45,159.38,6.27431296]
[1746718293086,6.41391933,159.45,159.37,6.27470665]
[1746718293659,43.63050541,159.45,159.37,6.27470665]
[1746718293877,6.41391933,159.45,159.37,6.27470665]
[1746718294078,0.14216157,159.43,159.28,6.1806]
[1746718294305,37.21658608,159.41,159.28,6.1806]
[1746718294511,37.21658608,159.4,159.28,6.1806]
[1746718294676,0.14216157,159.43,159.28,6.1806]
[1746718294882,0.14216157,159.43,159.31,26.0]
[1746718295184,0.14216157,159.43,159.28,6.1806]
[1746718295385,6.27313217,159.41,159.29,21.97250297]
[1746718295713,37.35874765,159.43,159.32,26.0]
[1746718296001,37.21658608,159.41,159.29,53.36179294]
[1746718296399,37.21658608,159.4,159.32,26.0]
[1746718296596,37.21658608,159.38,159.29,21.97250297]
[1746718296804,31.08,159.37,159.29,6.27785799]
[1746718296989,37.21658608,159.35,159.27,6.27864632]
[1746718297201,0.14216157,159.36,159.23,15.69991111]
[1746718297202,0.14216157,159.34,159.24,6.27982918]
[1746718297421,6.27628193,159.33,159.23,15.69991111]
[1746718297585,0.14216157,159.36,159.26,26.0]
[1746718297922,37.35474803,159.37,159.26,26.0]
[1746718298216,37.21658608,159.36,159.26,26.0]
[1746718298385,37.21658608,159.33,159.23,15.69991111]
[1746718298590,0.14216157,159.33,159.23,15.69991111]
[1746718298795,0.14216157,159.33,159.23,41.69991111]
[1746718299192,0.14216157,159.33,159.23,15.69991111]
[1746718299603,62.2849572,159.33,159.22,6.28061801]
[1746718299909,0.14216157,159.27,159.22,6.28061801]
[1746718300097,68.35874765,159.27,159.21,7.12921763]
[1746718300290,31.14216157,159.27,159.21,7.12916128]
[1746718300699,37.21658608,159.26,159.21,0.8482533]
[1746718300900,31.14216157,159.27,159.21,7.12917164]
[1746718300901,68.35874765,159.27,159.21,7.12917164]
[1746718301206,68.35874765,159.27,159.21,7.12918687]
[1746718301509,31.0,159.27,159.21,7.12918687]
[1746718301686,31.0,159.27,159.21,22.83171811]
[1746718302904,18.79181043,159.26,159.21,0.8482533]
[1746718303105,0.14216157,159.26,159.21,0.8482533]
[1746718303295,266.16,159.27,159.21,7.12924547]
[1746718303497,0.14216157,159.26,159.21,7.12924547]
[1746718303810,0.14216157,159.24,159.21,0.8482533]
[1746718304189,37.21658608,159.25,159.21,0.8482533]
[1746718304190,0.14216157,159.25,159.21,0.8482533]
[1746718304383,0.14216157,159.26,159.21,0.8482533]
[1746718304907,0.14216157,159.26,159.21,7.12919101]
[1746718305205,266.16,159.27,159.24,26.0]
[1746718305511,266.16,159.27,159.25,6.27943485]
[1746718305901,31.0,159.27,159.25,6.27943485]
[1746718306327,241.49509363,159.37,159.25,6.27943485]
[1746718306484,241.49509363,159.37,159.28,26.0]
[1746718306485,31.02,159.34,159.28,26.0]
[1746718306987,31.02,159.34,159.29,26.0]
[1746718307598,31.02,159.34,159.22,26.0]
[1746718307811,0.14216157,159.33,159.22,21.98216304]
[1746718308109,56.22282239,159.4,159.26,26.0]
[1746718308317,31.02,159.41,159.3,26.0]
[1746718308911,56.22282239,159.4,159.3,26.0]
[1746718309237,0.14216157,159.39,159.3,26.0]
[1746718309435,74.86639771,159.41,159.3,26.0]
[1746718309436,31.16216157,159.41,159.3,26.0]
[1746718309608,18.79181043,159.4,159.34,26.0]
[1746718310008,31.02,159.41,159.34,26.0]
[1746718311029,31.02,159.41,159.36,26.0]
[1746718312134,31.02,159.41,159.36,32.27502047]
[1746718312309,31.02,159.41,159.36,47.96277147]
[1746718312515,31.02,159.41,159.36,32.27502047]
[1746718313132,31.02,159.41,159.36,47.96277147]
[1746718313328,31.02,159.46,159.36,47.96277147]
[1746718313734,31.02,159.46,159.4,26.0]
[1746718314454,235.2,159.47,159.44,26.0]
[1746718314664,31.02,159.52,159.44,26.0]
[1746718314938,18.64964886,159.5,159.44,26.0]
[1746718315232,18.64964886,159.51,159.4,26.0]
[1746718315444,31.02,159.52,159.44,26.0]
[1746718315613,31.02,159.52,159.48,26.0]
[1746718317651,37.28889496,159.52,159.48,26.0]
[1746718318140,37.28889496,159.52,159.39,6.27391931]
[1746718318141,56.22282239,159.49,159.39,6.27391931]
[1746718318343,37.57317353,159.47,159.39,6.27391931]
[1746718318525,37.57317353,159.46,159.39,6.27391931]
[1746718318716,0.14216157,159.48,159.39,6.27391931]
[1746718319032,0.14216157,159.48,159.36,21.9628514]
[1746718319033,37.57317353,159.47,159.36,21.9628514]
[1746718319237,18.79181043,159.51,159.37,18.64964886]
[1746718319428,18.79181043,159.51,159.4,26.0]
[1746718319747,6.26959247,159.5,159.44,26.0]
[1746718320618,37.28915793,159.52,159.44,26.0]
[1746718320947,31.02,159.52,159.46,26.0]
[1746718321138,6.26645044,159.58,159.46,26.0]
[1746718321336,241.40687797,159.57,159.46,32.3868]
[1746718321546,37.57317353,159.56,159.46,32.3868]
[1746718321743,43.84080123,159.55,159.46,38.65773509]
[1746718321919,56.36498396,159.54,159.46,38.65773509]
[1746718322325,37.57317353,159.53,159.45,1.5902]
[1746718322650,56.36498396,159.54,159.44,26.0]
[1746718322835,235.14,159.57,159.44,32.27186364]
[1746718323163,235.14,159.57,159.48,26.0]
[1746718323323,235.14,159.57,159.52,26.0]
[1746718323527,31.0,159.58,159.52,26.0]
[1746718323746,6.26443828,159.64,159.56,26.0]
[1746718323973,31.0,159.65,159.56,26.0]
[1746718324155,29.0,159.65,159.58,26.0]
[1746718324543,31.0,159.72,159.62,26.0]
[1746718324866,6.2597809,159.75,159.66,26.0]
[1746718325170,6.25942042,159.76,159.66,26.0]
[1746718325340,266.02,159.78,159.66,26.0]
[1746718325674,272.27873745,159.78,159.7,26.0]
[1746718325846,266.02,159.78,159.7,26.0]
[1746718326366,309.85203925,159.78,159.7,26.0]
[1746718326741,266.02,159.78,159.7,26.0]
[1746718326940,266.02,159.78,159.74,26.0]
[1746718327257,31.0,159.78,159.74,26.0]
[1746718327465,234.88,159.88,159.69,24.77434886]
[1746718327466,234.88,159.88,159.76,26.0]
[1746718327693,6.25625625,159.84,159.77,6.2589973]
[1746718328049,30.98,159.85,159.8,26.0]
[1746718328248,234.88,159.88,159.8,26.0]
[1746718328463,234.88,159.88,159.82,26.0]
[1746718328972,241.13490622,159.88,159.82,26.0]
[1746718329150,241.13490622,159.88,159.8,26.0]
[1746718329770,241.13490622,159.88,159.81,26.0]
[1746718330071,277.64091512,159.88,159.81,26.0]
[1746718330643,36.5060089,159.84,159.71,15.65305675]
[1746718330873,18.79181043,159.86,159.75,26.0]
[1746718331247,241.27706779,159.88,159.79,26.0]
[1746718331479,234.88,159.88,159.83,26.0]
[1746718331686,234.88,159.88,159.81,26.0]
[1746718331997,234.88,159.88,159.78,18.79181043]
[1746718331998,30.98,159.92,159.85,26.0]
[1746718332200,36.5060089,159.91,159.85,26.0]
[1746718332378,36.5060089,159.88,159.8,27.6239]
[1746718332692,18.79181043,159.91,159.8,27.6239]
[1746718332693,36.5060089,159.87,159.82,26.0]
[1746718332867,36.5060089,159.88,159.8,1.6239]
[1746718333065,18.79181043,159.91,159.8,1.6239]
[1746718333273,36.5060089,159.86,159.79,26.0]
[1746718333781,0.14216157,159.89,159.79,32.25804833]
[1746718333996,6.25390869,159.9,159.79,32.25804833]
[1746718334287,6.25355735,159.91,159.81,26.0]
[1746718334488,30.98,159.92,159.81,26.0]
[1746718334687,30.98,159.92,159.85,26.0]
[1746718335291,30.98,159.92,159.87,26.0]
[1746718335496,37.233229,159.92,159.87,26.0]
[1746718335686,36.5060089,159.91,159.85,26.0]
[1746718335872,36.5060089,159.89,159.82,6.2736]
[1746718336077,0.14216157,159.89,159.8,26.0]
[1746718336281,44.79181043,159.89,159.73,1.531]
[1746718336482,0.14216157,159.88,159.74,6.26017278]
[1746718336679,36.5060089,159.84,159.75,26.0]
[1746718337182,0.14216157,159.88,159.74,6.26017278]
[1746718337369,36.5060089,159.87,159.77,26.0]
[1746718337583,36.5060089,159.86,159.77,26.0]
[1746718337768,6.25469101,159.88,159.78,32.25860558]
[1746718338089,15.63477173,159.9,159.81,26.0]
[1746718338090,36.5060089,159.9,159.81,26.0]
[1746718338301,30.98,159.92,159.81,26.0]
[1746718338592,234.56,160.06,159.87,26.0]
[1746718338800,30.76,160.02,159.91,26.0]
[1746718339217,67.2660089,160.02,159.91,26.0]
[1746718339386,30.76,160.02,159.91,26.0]
[1746718339594,30.76,160.02,159.88,26.0]
[1746718339912,1.14741092,160.01,159.92,26.0]
[1746718340293,38.44092113,160.01,159.92,26.0]
[1746718340489,37.29351021,159.95,159.89,6.25429983]
[1746718340713,37.29351021,159.94,159.87,6.25508225]
[1746718341005,0.14216157,159.98,159.87,6.25508225]
[1746718341196,37.29351021,159.97,159.9,26.0]
[1746718341386,37.43567178,159.99,159.9,26.0]
[1746718341597,0.14216157,159.99,159.9,26.0]
[1746718341787,37.43567178,159.99,159.9,26.0]
[1746718341992,6.39255776,159.99,159.91,6.2535176]
[1746718342221,37.29351021,159.99,159.91,6.2535176]
[1746718342533,6.24998641,160.01,159.94,26.0]
[1746718343113,43.54349662,160.01,159.91,6.2535176]
[1746718343423,37.29351021,160.0,159.91,32.2535176]
[1746718343589,6.24998641,160.01,159.91,32.2535176]
[1746718343590,6.24998641,160.01,159.94,26.0]
[1746718343791,55.65895635,160.02,159.94,26.0]
[1746718343993,30.76,160.02,159.95,6.25195373]
[1746718344615,37.29351021,160.01,159.94,6.25225714]
[1746718344818,74.30286248,160.02,159.9,26.0]
[1746718345118,30.76,160.02,159.9,26.0]
[1746718345916,30.76,160.02,159.91,21.8873116]
[1746718346721,37.29351021,160.01,159.91,21.8873116]
[1746718346921,30.76,160.02,159.91,21.8873116]
[1746718347223,30.76,160.02,159.94,26.0]
[1746718347811,37.29351021,160.01,159.94,26.0]
[1746718348011,37.29351021,160.01,159.95,6.25195373]
[1746718348220,37.29351021,159.97,159.88,15.63624977]
[1746718348407,37.29351021,159.97,159.88,21.89094078]
[1746718348725,18.79181043,160.01,159.91,26.0]
[1746718348908,37.29351021,160.0,159.91,26.0]
[1746718349221,56.08532064,160.01,159.88,21.89094078]
[1746718349520,30.76,160.02,159.91,26.0]
[1746718349896,30.76,160.02,159.95,26.0]
[1746718351631,30.76,160.02,159.92,21.88594296]
[1746718351632,37.29351021,160.01,159.92,6.25312656]
[1746718351801,37.00940325,160.02,159.92,6.25312656]
[1746718352125,37.00940325,160.02,159.93,26.0]
[1746718352323,37.29351021,160.0,159.93,32.25261886]
[1746718352533,37.29351021,159.97,159.86,15.6385164]
[1746718353031,37.29351021,159.94,159.87,5.0]
[1746718353402,18.79181043,159.96,159.87,26.0]
[1746718353622,37.29351021,159.95,159.87,26.0]
[1746718354012,18.79181043,159.96,159.83,6.25664768]
[1746718354213,37.29351021,159.92,159.83,6.25664768]
[1746718354422,30.72,159.93,159.83,6.25664768]
[1746718354617,30.72,159.93,159.86,26.0]
[1746718355217,68.01351021,159.93,159.86,26.0]
[1746718355441,37.29351021,159.92,159.86,26.0]
[1746718355601,37.29351021,159.91,159.86,26.0]
[1746718355806,30.72,159.93,159.83,6.25664768]
[1746718356034,37.29351021,159.87,159.8,1.5061]
[1746718356340,37.29351021,159.87,159.78,6.25860558]
[1746718356501,6.25469101,159.88,159.78,21.90511953]
[1746718356698,6.25312656,159.92,159.81,26.0]
[1746718356909,37.29351021,159.91,159.81,26.0]
[1746718357138,37.29351021,159.91,159.78,21.90511953]
[1746718357139,18.79181043,159.91,159.78,21.90511953]
[1746718357422,0.14216157,159.88,159.78,6.25860558]
[1746718357629,37.29351021,159.88,159.78,6.25860558]
[1746718358128,1.14741092,159.91,159.78,15.64651395]
[1746718358308,6.25312656,159.92,159.78,15.64651395]
[1746718358511,6.25312656,159.92,159.81,26.0]
[1746718358810,74.26631527,159.93,159.81,26.0]
[1746718359013,37.29351021,159.92,159.81,26.0]
[1746718359444,37.29351021,159.9,159.81,26.0]
[1746718359611,37.29351021,159.9,159.78,15.64651395]
[1746718359820,36.4943882,159.9,159.81,26.0]
[1746718360118,36.4943882,159.9,159.78,15.64651395]
[1746718360503,36.4943882,159.88,159.81,26.0]
[1746718360704,36.4943882,159.89,159.81,26.0]
[1746718360924,36.4943882,159.87,159.78,15.64651395]
[1746718361133,18.79181043,159.91,159.78,15.64651395]
[1746718361325,36.4943882,159.87,159.81,26.0]
[1746718361504,0.14216157,159.88,159.8,26.0]
[1746718361711,36.4943882,159.84,159.77,6.2589973]
[1746718361909,36.4943882,159.85,159.77,6.2589973]
[1746718362222,42.75066115,159.84,159.76,6.25938908]
[1746718362528,36.4943882,159.83,159.76,6.25938908]
[1746718362735,42.75066115,159.84,159.79,26.0]
[1746718362927,0.14216157,159.83,159.75,6.25970047]
[1746718363105,36.4943882,159.79,159.69,15.65474448]
[1746718363309,36.4943882,159.79,159.69,6.26213288]
[1746718363535,36.4943882,159.79,159.72,26.0]
[1746718363715,36.4943882,159.78,159.72,26.0]
[1746718363916,36.4943882,159.78,159.69,6.26213288]
[1746718364327,36.4943882,159.75,159.69,6.26213288]
[1746718364539,18.79181043,159.81,159.69,6.26213288]
[1746718364720,18.79181043,159.81,159.67,15.65666465]
[1746718364721,36.4943882,159.73,159.67,6.2625321]
[1746718364922,66.9743882,159.75,159.67,32.2625321]
[1746718365435,66.9743882,159.75,159.67,6.2625321]
[1746718365741,30.48,159.75,159.67,6.2625321]
[1746718366241,30.48,159.75,159.67,21.91982526]
[1746718367513,30.48,159.75,159.7,26.0]
[1746718368125,30.48,159.82,159.7,26.0]
[1746718368324,30.48,159.84,159.78,26.0]
[1746718369632,66.9743882,159.84,159.78,26.0]
[1746718369828,66.9743882,159.84,159.76,26.0]
[1746718370048,30.48,159.84,159.76,26.0]
[1746718370227,30.48,159.84,159.79,6.2582139]
[1746718370536,36.4943882,159.83,159.79,6.2582139]
[1746718371041,36.4943882,159.81,159.76,6.25938908]
[1746718371346,18.79181043,159.83,159.74,26.0]
[1746718371347,36.4943882,159.79,159.74,26.0]
[1746718371547,36.4943882,159.79,159.73,6.2605647]
[1746718371925,36.4943882,159.81,159.73,47.91197645]
[1746718372525,36.4943882,159.79,159.73,32.2605647]
[1746718372726,36.4943882,159.78,159.73,6.2605647]
[1746718373240,36.4943882,159.79,159.73,6.2605647]
[1746718373553,0.14216157,159.78,159.73,6.2605647]
[1746718373751,0.14216157,159.78,159.67,31.31458633]
[1746718373752,36.63654977,159.77,159.72,6.26084333]
[1746718373935,36.4943882,159.76,159.72,6.26084333]
[1746718374134,36.4943882,159.78,159.72,6.26084333]
[1746718374451,42.75299667,159.78,159.72,6.26084333]
[1746718374744,36.4943882,159.77,159.72,6.26084333]
[1746718375250,0.14216157,159.79,159.72,26.0]
[1746718375251,6.40045044,159.79,159.72,26.0]
[1746718375556,36.63654977,159.78,159.72,26.0]
[1746718375755,26.0,159.74,159.62,6.26487908]
[1746718375932,36.4943882,159.64,159.56,6.26723489]
[1746718376135,30.5,159.64,159.56,6.26723489]
[1746718376334,36.4943882,159.63,159.55,12.7128533]
[1746718376551,42.75965979,159.61,159.54,6.26799913]
[1746718376761,6.26527159,159.61,159.5,21.94311272]
[1746718376932,36.4943882,159.59,159.5,21.94311272]
[1746718377132,36.4943882,159.57,159.5,6.26959247]
[1746718377340,36.4943882,159.55,159.49,12.68821117]
[1746718377637,36.4943882,159.53,159.45,6.27155848]
[1746718377952,36.4943882,159.51,159.46,26.0]
[1746718378267,36.4943882,159.52,159.43,12.89276214]
[1746718378431,0.14216157,159.54,159.47,6.27077193]
[1746718378626,36.63654977,159.54,159.47,6.27077193]
[1746718378831,66.9943882,159.55,159.47,6.27077193]
[1746718379034,30.5,159.55,159.47,47.94770176]
[1746718379240,30.5,159.55,159.5,26.0]
[1746718379837,30.5,159.55,159.47,21.94770176]
[1746718380145,30.5,159.55,159.5,26.0]
[1746718380561,30.5,159.55,159.47,21.94770176]
[1746718380562,67.0143882,159.57,159.51,6.26919942]
[1746718380937,30.52,159.57,159.51,6.26919942]
[1746718381260,30.52,159.57,159.55,1.0]
[1746718382546,30.52,159.57,159.56,6.26723489]
[1746718382934,30.52,159.57,159.55,7.26753577]
[1746718383131,67.0143882,159.63,159.55,22.93660502]
[1746718383358,30.52,159.63,159.55,22.93660502]
[1746718383542,67.0143882,159.63,159.55,22.93660502]
[1746718383740,36.4943882,159.62,159.55,7.26753577]
[1746718384149,67.0143882,159.63,159.55,7.26753577]
[1746718384379,36.4943882,159.61,159.55,7.26753577]
[1746718384570,36.4943882,159.6,159.55,7.26753577]
[1746718384873,6.26533829,159.61,159.55,1.0]
[1746718385181,30.52,159.63,159.55,1.0]
[1746718385182,36.4943882,159.58,159.55,1.0]
[1746718385472,36.4943882,159.56,159.55,1.0]
[1746718386660,42.76162309,159.56,159.55,1.0]
[1746718386857,61.55343352,159.56,159.55,1.0]
[1746718387581,142.86687573,159.57,159.55,1.0]
[1746718387788,36.4943882,159.56,159.55,1.0]
[1746718387946,55.28619863,159.56,159.55,1.0]
[1746718388143,91.78058683,159.56,159.55,1.0]
[1746718388368,18.79181043,159.55,159.43,6.27198376]
[1746718388563,36.4943882,159.48,159.44,6.27186865]
[1746718388784,36.4943882,159.5,159.44,6.27186865]
[1746718388991,36.4943882,159.49,159.44,6.27186865]
[1746718389174,36.4943882,159.5,159.44,6.27186865]
[1746718389477,36.4943882,159.5,159.45,26.0]
[1746718389688,18.79181043,159.53,159.45,26.0]
[1746718390179,36.4943882,159.5,159.45,26.0]
[1746718390386,18.79181043,159.53,159.45,26.0]
[1746718390572,30.52,159.54,159.51,26.0]
[1746718391270,30.2,159.61,159.51,26.0]
[1746718391574,66.6943882,159.61,159.51,26.0]
[1746718392282,30.2,159.61,159.55,26.0]
[1746718392658,234.48,159.66,159.56,21.93532212]
[1746718392872,270.9743882,159.66,159.56,53.27149659]
[1746718393053,36.4943882,159.65,159.56,53.27149659]
[1746718393486,234.48,159.66,159.59,26.0]
[1746718394072,30.2,159.67,159.59,26.0]
[1746718394276,30.2,159.76,159.6,44.64964886]
[1746718394476,30.2,159.76,159.59,26.0]
[1746718394477,36.4943882,159.67,159.59,26.0]
[1746718394682,36.4943882,159.66,159.6,21.92982456]
[1746718394885,36.4943882,159.67,159.6,21.92982456]
[1746718395079,36.4943882,159.65,159.6,6.26566416]
[1746718395263,6.26165786,159.71,159.6,6.26566416]
[1746718395468,36.4943882,159.7,159.6,21.92982456]
[1746718395681,6.26026738,159.74,159.63,26.0]
[1746718395983,36.4943882,159.71,159.63,26.0]
[1746718396560,1.14741092,159.75,159.63,26.0]
[1746718396762,36.4943882,159.75,159.68,26.0]
[1746718396962,36.45949471,159.76,159.68,26.0]
[1746718397180,30.2,159.76,159.68,26.0]
[1746718398781,30.2,159.76,159.69,6.26213288]
[1746718399088,36.4943882,159.73,159.68,26.0]
[1746718399287,36.4943882,159.73,159.68,32.26222802]
[1746718399693,36.4943882,159.71,159.68,26.0]
[1746718399868,36.4943882,159.71,159.65,7.9765]
[1746718400267,36.4943882,159.68,159.57,14.04624213]
[1746718400580,36.4943882,159.63,159.57,7.7794]
[1746718400889,36.4943882,159.6,159.5,14.03939247]
[1746718401077,0.14216157,159.65,159.5,14.03939247]
[1746718401078,36.4943882,159.58,159.5,14.03939247]
[1746718401472,36.4943882,159.57,159.5,7.7698]
[1746718401679,0.14216157,159.59,159.5,7.7698]
[1746718401867,36.4943882,159.55,159.5,7.7698]
[1746718402082,36.4943882,159.54,159.45,6.27123072]
[1746718402277,36.4943882,159.55,159.48,26.0]
[1746718402478,0.14216157,159.56,159.48,26.0]
[1746718402677,42.76319461,159.52,159.44,7.7698]
[1746718402901,36.4943882,159.51,159.44,7.7698]
[1746718403197,36.4943882,159.51,159.44,33.7698]